bitfinex/quotes_ETHUSD_20260114
["timestamp","ask_amount","ask_price","bid_price","bid_amount"]
[1768420992524,2.13236675,3364.7,3363.2,0.95928841]
[1768420993398,2.13236675,3364.7,3363.0,2.97351323]
[1768420993619,2.09521634,3364.5,3362.9,0.67241414]
[1768420993900,2.09521634,3364.3,3362.9,0.001]
[1768420994100,2.09521634,3364.1,3362.9,0.001]
[1768420994320,0.03715814,3364.0,3362.9,0.001]
[1768420994543,2.09521634,3364.0,3362.9,0.001]
[1768420994840,2.09521634,3363.8,3362.0,0.001]
[1768420995019,2.09521634,3363.6,3362.0,2.9754033]
[1768420995216,2.09521634,3363.4,3362.0,0.001]
[1768420995441,2.09521634,3363.4,3362.1,2.97431764]
[1768420995739,2.09521634,3363.2,3362.0,0.001]
[1768420997835,5.94689422,3363.1,3362.0,0.001]
[1768420998037,0.80421106,3363.0,3362.0,0.001]
[1768420998263,2.09521634,3362.9,3362.0,0.001]
[1768421000770,2.97371238,3362.8,3362.0,0.001]
[1768421001266,2.00385095,3362.7,3362.0,0.001]
[1768421002843,2.97388925,3362.6,3362.0,0.001]
[1768421003273,3.76904518,3362.6,3362.0,0.001]
[1768421004967,2.97406614,3362.4,3362.0,0.001]
[1768421005171,4.97785957,3362.5,3362.0,0.001]
[1768421005371,7.95186819,3362.5,3362.0,0.001]
[1768421005570,2.00385095,3362.4,3362.0,0.001]
[1768421005870,0.87470241,3362.3,3362.0,0.001]
[1768421006037,2.00385095,3362.4,3362.0,0.001]
[1768421006661,2.00385095,3362.4,3362.3,0.001]
[1768421006879,0.79515593,3362.6,3362.3,0.001]
[1768421007038,0.403,3362.7,3362.3,0.001]
[1768421008573,3.37682079,3362.7,3362.3,0.001]
[1768421008936,0.403,3362.7,3362.3,0.001]
[1768421009838,2.04102456,3362.6,3362.0,0.001]
[1768421010261,2.04102456,3362.6,3361.7,0.001]
[1768421010482,2.00385095,3362.4,3361.7,0.001]
[1768421010776,2.00385095,3362.2,3360.7,2.20272909]
[1768421010935,2.00385095,3361.8,3360.7,2.20272909]
[1768421011135,2.00385095,3361.8,3360.4,2.97581231]
[1768421011448,2.00385095,3361.8,3360.2,2.9759976]
[1768421011658,2.00385095,3361.8,3360.4,2.97577517]
[1768421011972,2.00385095,3361.8,3360.0,2.13186229]
[1768421012676,2.04103341,3361.8,3360.0,2.13186229]
[1768421012859,2.00385095,3361.6,3360.1,2.97601813]
[1768421013060,2.00385095,3361.4,3359.6,2.13186229]
[1768421013266,2.00385095,3361.4,3360.0,2.97614077]
[1768421013439,2.00385095,3361.4,3359.9,2.97624198]
[1768421013639,5.94972482,3361.5,3359.9,2.9762766]
[1768421013640,2.00385095,3361.2,3359.9,2.9762766]
[1768421014075,2.00385095,3361.2,3360.0,2.97619007]
[1768421014375,2.00385095,3361.2,3359.8,2.97630204]
[1768421014676,0.79535758,3361.3,3359.9,2.97626243]
[1768421014677,2.40685095,3361.1,3359.9,2.97626243]
[1768421015270,0.403,3361.1,3359.8,2.13186229]
[1768421015480,0.403,3361.1,3360.0,2.13186229]
[1768421016370,3.37821786,3361.1,3359.9,1.1061229]
[1768421016572,3.37821786,3361.1,3359.7,5.95291051]
[1768421016775,0.403,3361.1,3359.7,5.95291051]
[1768421016938,0.403,3361.1,3359.8,2.13186229]
[1768421017139,0.403,3361.1,3359.9,8.08442039]
[1768421017845,0.403,3361.1,3359.9,11.06069944]
[1768421018154,0.403,3361.1,3360.0,1.10606994]
[1768421018571,4.97791709,3362.4,3360.1,2.13186229]
[1768421018746,8.35498323,3362.4,3360.1,2.52986229]
[1768421019141,2.00385095,3362.9,3360.4,2.13186229]
[1768421019379,3.17409747,3362.8,3360.6,2.13186229]
[1768421019590,0.20038509,3362.8,3360.6,2.13186229]
[1768421019777,0.20038509,3362.8,3360.7,2.13186229]
[1768421019946,2.97365364,3362.9,3360.7,2.13186229]
[1768421020342,0.403,3363.0,3361.0,2.13186229]
[1768421020544,0.403,3363.0,3361.2,2.13186229]
[1768421020978,2.9727741,3363.9,3361.4,2.13186229]
[1768421021175,5.94558062,3363.9,3361.5,11.89944964]
[1768421021482,0.83524316,3363.8,3361.7,2.13186229]
[1768421021979,0.03716145,3363.7,3361.7,2.13186229]
[1768421022180,2.0410124,3363.7,3361.7,2.13186229]
[1768421022490,2.00385095,3363.7,3361.7,2.13186229]
[1768421023264,2.97318189,3363.4,3361.8,5.94919388]
[1768421023468,0.50141954,3363.3,3361.9,1.10557885]
[1768421024868,0.03716698,3363.2,3361.9,1.10557885]
[1768421025489,2.00385095,3363.0,3361.9,1.10557885]
[1768421025789,2.04102124,3362.9,3360.9,2.13186229]
[1768421025965,2.00385095,3362.9,3360.9,2.13186229]
[1768421026165,2.00385095,3362.7,3361.1,2.97515294]
[1768421026365,2.00385095,3362.5,3360.8,2.9754453]
[1768421026568,0.20410224,3362.6,3360.7,2.13186229]
[1768421026770,2.00385095,3363.0,3361.5,2.97479155]
[1768421027160,2.00385095,3363.0,3361.4,2.97492734]
[1768421027482,2.00385095,3362.8,3360.8,2.13186229]
[1768421027677,2.00385095,3362.6,3360.9,5.95078698]
[1768421027880,0.50141954,3363.3,3361.0,2.13186229]
[1768421028188,2.00385095,3363.1,3361.2,2.13186229]
[1768421028960,2.00385095,3363.0,3361.3,0.47572541]
[1768421029179,2.04101572,3363.4,3361.4,2.13186229]
[1768421029496,2.00385095,3363.2,3361.4,2.13186229]
[1768421030002,2.04101793,3363.2,3361.4,2.13186229]
[1768421030295,2.00385095,3363.4,3361.5,1.40320199]
[1768421030894,0.002,3362.9,3361.5,1.40320199]
[1768421031373,2.04641109,3362.8,3361.6,5.94954782]
[1768421031559,0.002,3362.9,3361.6,5.94954782]
[1768421031764,2.04641109,3362.8,3361.6,5.94954782]
[1768421031973,2.08358249,3362.8,3361.7,0.73527498]
[1768421032177,2.04641109,3362.8,3361.7,0.73527498]
[1768421032891,2.04641109,3362.6,3361.1,2.97514865]
[1768421033069,2.04641109,3362.4,3361.1,2.97514865]
[1768421033286,2.04641109,3362.2,3360.8,2.97543776]
[1768421033712,2.04641109,3362.2,3360.7,8.92671168]
[1768421033897,2.04641109,3362.2,3360.8,1.12455307]
[1768421034112,0.002,3362.9,3360.9,1.92181906]
[1768421034282,0.002,3362.9,3361.0,1.92181906]
[1768421035016,2.97563783,3362.9,3361.0,1.92181906]
[1768421035174,2.97563783,3362.9,3360.8,1.12455307]
[1768421035175,2.97564256,3362.9,3361.1,2.96267991]
[1768421035377,2.08358249,3362.8,3361.1,1.92181906]
[1768421036207,2.04641109,3362.6,3361.2,2.97512793]
[1768421036404,2.04641109,3362.4,3360.8,1.12455307]
[1768421036592,2.04641109,3362.4,3360.3,1.92181906]
[1768421036593,2.04641109,3362.4,3361.1,5.95042567]
[1768421038310,6.34960162,3362.7,3360.4,0.398]
[1768421038311,0.402,3362.7,3360.8,1.92181906]
[1768421038521,0.402,3362.7,3360.9,1.92181906]
[1768421038733,0.002,3362.9,3360.9,1.92181906]
[1768421039511,0.002,3362.9,3360.9,3.36765717]
[1768421039715,0.002,3363.2,3360.8,7.36223636]
[1768421039716,0.00099717,3363.2,3361.7,1.92181906]
[1768421039907,0.00099717,3363.2,3361.7,2.31981906]
[1768421040283,2.04740826,3363.2,3361.8,2.97459694]
[1768421040483,2.04641109,3363.1,3361.8,5.94919388]
[1768421040926,2.04641109,3363.1,3361.8,8.92379082]
[1768421041222,0.00099717,3363.2,3361.9,2.85399814]
[1768421041788,2.04641109,3363.9,3362.0,1.92181906]
[1768421042096,2.08357144,3363.8,3361.9,0.93217908]
[1768421042435,2.9726151,3364.1,3361.1,1.92181906]
[1768421042436,2.04641109,3363.4,3361.1,1.92181906]
[1768421042725,2.04641109,3363.2,3361.0,2.97524691]
[1768421042934,0.03716808,3363.1,3360.8,0.398]
[1768421043091,2.04641109,3363.0,3361.4,2.97488146]
[1768421043290,2.04641109,3362.8,3361.4,2.97488146]
[1768421043485,2.04641109,3362.8,3361.5,2.97484484]
[1768421043887,2.04641109,3362.8,3361.6,2.97476752]
[1768421044086,2.04641109,3362.8,3361.6,2.97476109]
[1768421044289,2.04641109,3362.6,3360.8,1.92181906]
[1768421044489,2.04641109,3362.4,3360.9,6.14296889]
[1768421045987,2.04641109,3362.4,3360.9,9.11836238]
[1768421046286,2.97415459,3362.3,3360.9,6.14296889]
[1768421046488,2.04641109,3362.4,3360.9,6.14296889]
[1768421046683,2.04641109,3362.8,3361.0,1.92181906]
[1768421046917,0.002,3362.9,3361.2,1.92181906]
[1768421047720,0.002,3363.2,3361.4,1.92181906]
[1768421047890,0.002,3363.2,3361.6,1.92181906]
[1768421048086,2.04641109,3364.0,3362.2,1.92181906]
[1768421048328,2.44841109,3364.4,3362.6,1.92181906]
[1768421048533,0.402,3364.4,3362.8,1.92181906]
[1768421048731,2.04641109,3364.3,3362.7,1.38177839]
[1768421049030,2.08356592,3364.3,3362.7,1.38177839]
[1768421049700,2.08356592,3364.3,3362.5,2.97397769]
[1768421049905,2.04641109,3364.3,3362.5,2.97397769]
[1768421050413,2.04641109,3364.1,3362.2,8.92269397]
[1768421051189,2.04641109,3364.1,3362.3,1.92181906]
[1768421051541,2.04641109,3363.9,3362.2,8.92269397]
[1768421051705,2.04641109,3363.9,3362.3,0.8922694]
[1768421052049,2.04641109,3363.7,3362.3,0.8922694]
[1768421052213,2.04641109,3363.5,3362.3,0.8922694]
[1768421052394,2.97318189,3363.4,3361.9,5.94894551]
[1768421052593,0.03716587,3363.3,3361.9,5.94894551]
[1768421053014,5.01959298,3363.4,3361.9,5.94894551]
[1768421053214,0.03716587,3363.3,3361.9,5.94894551]
[1768421053404,5.01959298,3363.4,3361.9,5.94894551]
[1768421053603,5.81886299,3363.4,3362.0,0.93215761]
[1768421054491,2.04641109,3363.3,3362.1,2.97433151]
[1768421054688,2.04641109,3363.3,3362.1,5.94866302]
[1768421056506,2.04641109,3363.1,3361.3,2.97495493]
[1768421056810,2.04641109,3362.9,3361.4,0.62993315]
[1768421057000,2.04641109,3362.7,3361.5,2.97485189]
[1768421057201,2.04641109,3362.5,3361.2,0.001]
[1768421057744,2.04641109,3363.1,3361.2,0.001]
[1768421058037,2.04641109,3363.1,3361.8,2.97459235]
[1768421058239,2.84592394,3363.0,3361.8,2.97459235]
[1768421058440,2.04641109,3362.9,3361.8,2.97459235]
[1768421058643,2.04641109,3362.7,3361.4,5.94990182]
[1768421060617,2.04641109,3362.7,3361.2,2.97606352]
[1768421061541,2.04641109,3362.7,3361.2,0.001]
[1768421061841,2.04641109,3362.7,3361.3,1.12464684]
[1768421062614,2.04641109,3362.7,3361.4,5.94990182]
[1768421062840,5.02022835,3362.7,3361.4,5.94990182]
[1768421063147,2.04641109,3362.7,3361.4,5.94990182]
[1768421064041,5.020212,3362.7,3361.4,5.94990182]
[1768421064247,5.8195959,3362.7,3361.5,0.70755487]
[1768421064407,2.84579499,3362.7,3361.5,0.70755487]
[1768421064813,2.84579499,3362.7,3361.6,5.94954782]
[1768421065538,2.04641109,3362.7,3361.6,5.94954782]
[1768421066846,2.97354854,3363.0,3361.6,5.94954782]
[1768421066847,1.96245576,3363.0,3361.6,5.94954782]
[1768421067195,0.002,3363.2,3361.7,1.92880626]
[1768421067312,0.002,3363.2,3361.9,1.92880626]
[1768421067655,0.002,3363.2,3362.0,0.23268063]
[1768421068109,0.002,3363.5,3362.1,1.92880626]
[1768421068933,0.002,3363.5,3362.2,10.85153541]
[1768421069145,0.002,3363.5,3362.3,1.92880626]
[1768421070966,1.96445576,3363.5,3362.1,5.94866302]
[1768421071254,1.96245576,3363.3,3362.1,2.97433151]
[1768421071409,5.94636378,3363.4,3362.1,2.97433151]
[1768421071410,1.96245576,3363.1,3362.1,2.97433151]
[1768421071616,1.99962495,3363.0,3361.7,0.001]
[1768421071853,1.96245576,3363.0,3362.0,2.97440202]
[1768421072158,1.96245576,3363.0,3362.0,5.948822]
[1768421073244,1.96245576,3363.0,3361.7,0.001]
[1768421073445,1.96245576,3363.0,3361.8,1.19596332]
[1768421074428,0.79108195,3363.2,3361.8,1.19596332]
[1768421074633,1.96245576,3363.3,3361.8,1.19596332]
[1768421075261,0.404,3363.5,3362.0,1.92880626]
[1768421077447,0.404,3363.5,3362.2,1.92880626]
[1768421078043,0.002,3363.5,3362.2,1.92880626]
[1768421078242,0.002,3363.5,3362.4,1.92880626]
[1768421079477,1.96445576,3363.5,3362.5,5.94795538]
[1768421081252,0.002,3363.2,3362.5,5.94795538]
[1768421081879,1.96445576,3363.2,3362.4,2.97406614]
[1768421082177,0.002,3363.2,3362.4,5.94813228]
[1768421082478,0.002,3363.2,3362.5,0.78769385]
[1768421083781,0.002,3363.2,3362.6,2.97388925]
[1768421084151,0.002,3363.2,3362.5,3.76162153]
[1768421084152,0.002,3363.2,3362.5,3.7616349]
[1768421084382,0.002,3363.2,3362.5,2.97394105]
[1768421085174,1.96445576,3363.2,3362.2,2.97421688]
[1768421085360,1.96245576,3363.0,3362.1,2.9752989]
[1768421085679,1.96245576,3363.0,3362.1,0.001]
[1768421085882,1.96245576,3362.8,3362.1,0.001]
[1768421086546,0.002,3363.2,3362.1,0.001]
[1768421086547,1.96245576,3363.1,3362.1,0.001]
[1768421087881,1.99962495,3363.0,3362.1,0.001]
[1768421088049,1.96245576,3363.0,3362.1,0.001]
[1768421088252,0.03717029,3362.9,3362.1,0.001]
[1768421088448,0.83201383,3362.9,3362.1,0.001]
[1768421088653,0.79484354,3362.9,3362.1,0.001]
[1768421089762,0.83201383,3362.9,3362.1,0.001]
[1768421089971,2.79446959,3362.9,3362.1,0.001]
[1768421090290,2.7572993,3362.9,3362.1,0.001]
[1768421090784,1.96245576,3362.9,3362.1,0.001]
[1768421094478,1.91711608,3363.2,3362.1,0.001]
[1768421094990,1.91511608,3363.1,3362.1,0.001]
[1768421096057,4.88859096,3363.1,3362.1,0.001]
[1768421096681,1.91511608,3363.0,3362.1,0.001]
[1768421096885,2.70150457,3363.0,3362.1,0.001]
[1768421097213,1.91511608,3363.0,3362.1,0.001]
[1768421097426,0.002,3363.2,3362.1,0.001]
[1768421097715,0.002,3363.2,3362.1,1.75731032]
[1768421098912,0.002,3363.2,3362.1,0.001]
[1768421098913,1.91711608,3363.2,3362.1,0.001]
[1768421099083,1.91511608,3363.1,3362.1,0.001]
[1768421099289,1.91511608,3362.9,3362.1,0.001]
[1768421099502,1.91511608,3362.7,3361.7,0.001]
[1768421099682,1.91511608,3362.5,3361.7,0.001]
[1768421099888,1.91511608,3362.5,3360.3,1.75631032]
[1768421100122,1.91511608,3362.5,3360.7,2.97549997]
[1768421100319,1.91511608,3362.5,3361.1,2.97519032]
[1768421100482,1.91511608,3362.5,3360.9,2.97531533]
[1768421100689,1.91511608,3362.5,3360.3,1.75631032]
[1768421100889,1.91511608,3362.5,3360.8,1.75631032]
[1768421101112,1.91511608,3362.5,3361.5,2.9748521]
[1768421101421,1.91511608,3362.2,3361.2,0.001]
[1768421101990,1.91511608,3362.0,3359.5,1.75631032]
[1768421102243,1.91511608,3362.0,3359.0,0.001]
[1768421102530,0.402,3362.1,3360.1,0.001]
[1768421102531,1.91511608,3361.7,3360.1,0.001]
[1768421102732,10.128,3361.8,3360.1,0.001]
[1768421102733,1.91511608,3361.5,3360.1,0.001]
[1768421102936,1.91511608,3361.3,3360.1,0.001]
[1768421103091,1.91511608,3361.1,3360.1,0.001]
[1768421103399,1.91511608,3360.9,3360.1,0.001]
[1768421104497,1.91511608,3360.9,3359.0,0.001]
[1768421105525,1.91511608,3360.7,3359.0,0.001]
[1768421105752,1.91511608,3360.5,3359.3,0.001]
[1768421106046,2.31711608,3360.4,3359.3,0.001]
[1768421106632,5.95096404,3360.8,3359.3,1.75731032]
[1768421106633,1.91511608,3360.8,3359.3,1.75731032]
[1768421107864,1.91511608,3360.8,3359.4,5.95344406]
[1768421108150,1.91511608,3360.8,3359.4,10.68647641]
[1768421108337,1.24375511,3360.9,3359.6,1.75631032]
[1768421108567,1.91511608,3361.6,3360.0,1.75631032]
[1768421108963,0.402,3361.8,3360.1,1.75631032]
[1768421109163,5.08069625,3362.4,3360.1,1.75631032]
[1768421109342,2.10662769,3362.4,3360.1,1.75631032]
[1768421109544,5.08070527,3362.4,3360.3,1.75631032]
[1768421109743,5.08070527,3362.4,3360.5,1.75631032]
[1768421109978,8.05478285,3362.4,3360.6,7.70762852]
[1768421110276,1.91511608,3362.3,3360.6,10.68328762]
[1768421111664,1.91511608,3362.3,3360.7,1.75631032]
[1768421111874,1.91511608,3362.3,3360.6,11.9026364]
[1768421111875,0.402,3362.6,3361.0,8.92591488]
[1768421112176,0.402,3362.6,3361.1,1.75631032]
[1768421113047,1.91511608,3363.1,3361.3,1.75631032]
[1768421114168,0.002,3363.2,3361.8,1.75631032]
[1768421114984,1.91711608,3363.2,3361.4,10.68116305]
[1768421115286,1.91711608,3363.2,3361.5,3.16173261]
[1768421115644,1.91511608,3363.1,3361.5,1.40542229]
[1768421115962,1.91511608,3363.1,3361.2,1.75631032]
[1768421115963,4.88858713,3363.1,3361.2,1.75631032]
[1768421116561,1.91511608,3363.1,3361.2,1.75631032]
[1768421116844,2.97538258,3363.2,3361.2,1.75631032]
[1768421116845,0.002,3363.2,3361.2,1.75631032]
[1768421117073,0.002,3363.2,3361.4,1.75631032]
[1768421117275,2.9753942,3363.2,3361.4,1.75631032]
[1768421117485,2.9753942,3363.2,3361.5,1.93194135]
[1768421117871,0.002,3362.8,3361.5,1.93194135]
[1768421118181,1.91711608,3363.1,3361.6,8.92432173]
[1768421118389,1.95228527,3363.0,3361.6,5.94954782]
[1768421118692,0.002,3363.1,3361.7,1.75631032]
[1768421118864,0.002,3363.1,3361.8,1.08562631]
[1768421119058,0.002,3363.2,3361.9,1.75631032]
[1768421119378,1.91511608,3364.2,3362.7,1.75631032]
[1768421119696,0.002,3364.6,3362.7,2.15431032]
[1768421120161,0.002,3364.6,3362.9,1.75631032]
[1768421120359,0.002,3364.6,3363.1,1.61722822]
[1768421120694,0.002,3364.6,3363.3,1.61722822]
[1768421121187,0.002,3364.9,3363.3,1.61722822]
[1768421121578,0.002,3365.4,3363.7,8.60327603]
[1768421121753,2.97348016,3365.4,3363.8,1.97505619]
[1768421121952,3.43524142,3365.4,3363.9,0.9001276]
[1768421122252,3.43524142,3365.4,3364.0,2.9726516]
[1768421122455,0.002,3365.7,3364.1,1.57705619]
[1768421123266,4.61275423,3366.3,3364.4,1.57705619]
[1768421123675,0.002,3367.1,3365.5,7.02621984]
[1768421123879,0.002,3367.1,3365.6,0.398]
[1768421124084,4.65119811,3367.1,3365.6,0.398]
[1768421124280,0.46511981,3367.0,3365.7,5.94230026]
[1768421124862,1.67925852,3366.9,3365.6,0.398]
[1768421125069,1.64213239,3366.9,3365.6,2.97121932]
[1768421125391,0.46511981,3367.0,3365.6,5.94245773]
[1768421126202,0.002,3367.1,3365.5,1.57705619]
[1768421127089,1.64413239,3367.1,3365.4,5.94274688]
[1768421127313,0.03712503,3367.0,3365.4,6.33974688]
[1768421127593,1.64213239,3367.0,3365.4,2.9713319]
[1768421128082,1.64213239,3367.0,3365.4,5.94274688]
[1768421128288,3.13450442,3366.9,3365.6,2.97123841]
[1768421128490,0.16441324,3366.9,3365.6,5.94247682]
[1768421128863,1.64213239,3366.8,3365.5,3.90244008]
[1768421129280,1.64213239,3366.8,3365.5,5.94263864]
[1768421129994,1.64213239,3366.8,3365.4,2.97139112]
[1768421130295,0.16441324,3366.9,3365.9,1.57705619]
[1768421130495,0.002,3367.1,3366.5,7.02621984]
[1768421130496,1e-08,3367.1,3366.5,7.02621984]
[1768421130697,1.6421324,3367.1,3366.0,0.15770562]
[1768421130993,1.6421324,3367.1,3365.3,8.91448698]
[1768421130994,1.68125742,3367.0,3365.3,5.9429837]
[1768421131201,1.68125742,3367.0,3365.3,2.97148042]
[1768421131489,1.68125742,3367.0,3365.4,0.397]
[1768421131490,1.64413239,3367.0,3365.4,0.397]
[1768421131995,1.64413239,3367.0,3364.5,1.57705619]
[1768421132290,2.97026762,3366.7,3364.7,1.57705619]
[1768421132457,2.97026762,3366.7,3364.8,2.69880218]
[1768421132658,2.97026762,3366.7,3364.9,1.57705619]
[1768421132865,2.97026762,3366.7,3365.0,0.02971768]
[1768421133295,0.401,3366.9,3365.0,1.60677387]
[1768421133496,0.002,3367.0,3365.2,1.57705619]
[1768421133811,0.002,3367.0,3365.6,1.57705619]
[1768421134312,0.002,3367.0,3365.7,5.94230026]
[1768421134605,0.002,3367.0,3365.8,1.57705619]
[1768421134897,0.002,3367.0,3365.8,1.6067668]
[1768421135199,0.002,3367.0,3366.1,1.57705619]
[1768421135398,0.002,3367.0,3366.2,0.397]
[1768421135697,0.002,3367.0,3366.1,0.397]
[1768421136267,0.002,3367.0,3366.2,2.97070881]
[1768421136594,0.002,3367.0,3366.2,5.94141762]
[1768421136760,0.002,3367.0,3366.4,1.57705619]
[1768421136965,0.002,3368.2,3366.7,1.57705619]
[1768421137563,0.002,3368.2,3366.8,1.57705619]
[1768421137763,0.002,3368.2,3366.9,0.397]
[1768421138200,2.97095653,3368.2,3366.9,0.397]
[1768421138394,0.002,3368.2,3367.1,2.96991476]
[1768421138603,0.002,3368.2,3367.1,7.51688571]
[1768421138970,0.002,3368.2,3367.1,5.93982952]
[1768421139375,0.002,3368.2,3367.2,1.57705619]
[1768421139821,0.002,3368.2,3367.1,5.93982952]
[1768421140107,0.002,3368.2,3367.2,0.72368571]
[1768421140305,0.002,3368.2,3367.3,8.90921508]
[1768421140612,0.002,3368.2,3367.3,10.48627127]
[1768421140811,1e-08,3368.4,3367.3,10.48627127]
[1768421140972,4.61011147,3369.3,3367.4,1.57705619]
[1768421141307,4.60868905,3371.0,3369.1,1.19675628]
[1768421141506,0.03708208,3370.9,3369.2,0.397]
[1768421141709,1.64213239,3371.0,3369.2,0.397]
[1768421141908,1.64213239,3371.0,3369.3,0.01150304]
[1768421142077,0.49793549,3370.9,3369.4,0.16052593]
[1768421142277,0.49793549,3370.9,3369.5,5.93559874]
[1768421142278,0.03708318,3370.8,3369.5,5.93559874]
[1768421142476,0.46085341,3370.9,3369.5,5.93559874]
[1768421142477,3.42748962,3370.9,3369.5,5.93559874]
[1768421142685,3.42748962,3370.9,3369.5,2.96779937]
[1768421143310,6.39412583,3370.9,3369.5,2.96779937]
[1768421143474,0.840709,3370.8,3369.3,0.01150304]
[1768421143674,0.80362582,3370.8,3369.3,0.01150304]
[1768421143875,0.002,3369.6,3369.3,0.01150304]
[1768421144094,0.80362582,3370.8,3369.3,0.01150304]
[1768421144296,8.90049249,3370.6,3369.3,0.01150304]
[1768421144499,1.01120674,3370.5,3369.3,0.01150304]
[1768421144821,0.03708758,3370.4,3369.3,0.01150304]
[1768421145310,0.03708758,3370.4,3367.7,1.17423071]
[1768421145484,10.97412026,3370.5,3367.5,2.96948368]
[1768421145684,0.03708758,3370.4,3367.5,0.397]
[1768421145890,1.27298852,3370.3,3367.8,2.96928828]
[1768421146123,1.64213239,3370.2,3367.5,0.397]
[1768421146443,1.64213239,3370.2,3366.7,4.13357377]
[1768421146444,1.64213239,3370.0,3366.7,4.13357377]
[1768421146628,1.67922547,3369.9,3366.2,1.16337923]
[1768421146958,1.64213239,3369.7,3367.5,2.96953811]
[1768421147122,1.14213239,3369.7,3367.6,0.29695381]
[1768421147740,1.64213239,3369.5,3367.6,0.29695381]
[1768421148266,1.64213239,3369.5,3367.4,2.96964737]
[1768421148544,1.64213239,3369.3,3367.1,5.93975154]
[1768421149947,2.96762323,3369.7,3367.4,1.57705619]
[1768421150148,2.96762323,3369.7,3367.6,1.57705619]
[1768421150317,2.96762323,3369.7,3367.7,1.53955266]
[1768421150513,0.7577304,3369.6,3367.9,8.90762787]
[1768421150753,0.7577304,3369.6,3368.0,0.42669121]
[1768421151044,0.7577304,3369.6,3368.0,0.397]
[1768421151746,1.52261674,3370.3,3368.1,1.53954913]
[1768421151942,1.52261674,3370.3,3368.2,1.50985881]
[1768421152244,1.52261674,3370.3,3368.3,0.02968856]
[1768421152647,2.96718295,3370.2,3368.4,8.90630565]
[1768421152864,5.9343659,3370.2,3368.4,5.9375371]
[1768421153168,0.74569826,3370.1,3368.5,1.04162955]
[1768421153649,1.52261674,3370.0,3368.5,1.04162955]
[1768421154719,1.52261674,3369.8,3368.6,2.96859229]
[1768421155250,1.52261674,3369.8,3368.6,5.93718458]
[1768421155549,1.52261674,3369.6,3367.3,1.50985881]
[1768421155738,1.52261674,3369.4,3368.1,2.96898045]
[1768421156250,1.52261674,3369.4,3367.9,0.397]
[1768421156454,1.52261674,3369.4,3368.2,2.96891037]
[1768421156744,2.96797554,3369.3,3368.0,5.93822293]
[1768421156945,4.49054183,3369.4,3368.1,0.63352229]
[1768421158247,4.49054183,3369.4,3368.2,2.96894483]
[1768421158655,7.45846692,3369.4,3368.2,2.96894483]
[1768421159346,7.45846692,3369.4,3368.1,0.63352229]
[1768421159545,1.52261674,3369.3,3368.0,0.397]
[1768421159750,1.52261674,3369.3,3368.1,2.96898703]
[1768421160149,1.52261674,3369.3,3368.1,5.93802001]
[1768421160448,1.52261674,3369.4,3368.0,3.36611922]
[1768421160615,0.03710079,3369.2,3368.0,2.96911922]
[1768421160817,1.52261674,3369.2,3368.1,0.29691192]
[1768421162549,1.52261674,3369.6,3368.2,5.93788966]
[1768421162752,1.52261674,3369.6,3368.2,8.90683449]
[1768421162950,1.52261674,3369.5,3368.1,3.26590647]
[1768421163150,1.52261674,3369.3,3368.1,2.96902898]
[1768421163349,1.52261674,3369.3,3367.8,0.397]
[1768421163350,1.52261674,3369.3,3367.7,0.001]
[1768421163550,1.55971643,3369.3,3367.8,3.36628154]
[1768421163850,1.55971643,3369.3,3367.7,0.001]
[1768421164025,1.52261674,3369.3,3367.7,0.001]
[1768421164227,1.52261674,3369.1,3367.7,0.001]
[1768421164887,0.25653972,3369.2,3367.7,0.03069385]
[1768421165045,2.96806363,3369.2,3367.7,0.03069385]
[1768421165451,1.52261674,3369.1,3367.7,0.001]
[1768421165944,1.55971863,3369.1,3367.7,0.001]
[1768421167033,1.52261674,3368.9,3367.7,0.001]
[1768421168357,1.52261674,3369.3,3367.7,1.54055266]
[1768421168560,2.96798992,3369.3,3367.8,1.66391408]
[1768421169058,1.52261674,3369.5,3367.9,5.93841858]
[1768421170025,1.52261674,3369.5,3367.9,2.96920929]
[1768421170231,1.52261674,3369.3,3367.7,0.001]
[1768421170432,1.52261674,3369.1,3367.7,0.001]
[1768421170656,1.52261674,3368.9,3367.7,0.001]
[1768421170850,1.52261674,3368.7,3367.7,0.001]
[1768421171050,1.52261674,3368.5,3367.7,0.001]
[1768421171534,1.52261674,3368.9,3367.7,0.001]
[1768421172941,0.15597175,3369.0,3367.7,0.001]
[1768421173270,1.55972083,3368.9,3367.7,0.001]
[1768421173432,8.90429519,3369.2,3367.7,0.001]
[1768421173433,1.52261674,3368.7,3367.7,0.001]
[1768421174873,1.52261674,3368.7,3366.0,1.50985881]
[1768421175185,1.52261674,3368.3,3366.1,2.97179706]
[1768421175334,1.52261674,3368.3,3366.1,0.001]
[1768421175534,1.52261674,3368.3,3366.1,0.00825291]
[1768421175836,8.90630565,3368.4,3366.2,0.44889745]
[1768421175837,1.52261674,3368.1,3366.2,0.44889745]
[1768421177185,1.52261674,3367.9,3366.3,2.97062056]
[1768421178484,1.52261674,3367.9,3366.2,0.44889745]
[1768421178649,1.52261674,3367.9,3366.1,0.001]
[1768421178849,1.52261674,3367.8,3366.1,0.001]
[1768421179374,1.52261674,3367.6,3366.1,0.001]
[1768421180751,1.58069111,3368.0,3366.1,1.48541978]
[1768421180949,1.58069111,3368.0,3366.2,2.40784238]
[1768421181180,2.96920929,3367.9,3366.4,5.94206462]
[1768421181750,4.54983215,3368.0,3366.4,8.91985019]
[1768421181946,1.4656559,3368.6,3366.5,1.52339009]
[1768421182151,0.1432008,3368.7,3366.7,1.51613804]
[1768421182376,0.1432008,3368.7,3366.8,1.5233795]
[1768421182377,6.0802445,3368.7,3366.8,1.5233795]
[1768421182582,0.1432008,3368.7,3366.8,1.51613804]
[1768421182789,0.1432008,3368.7,3367.0,1.51306737]
[1768421182951,0.1432008,3368.7,3367.2,1.51306737]
[1768421183157,0.1432008,3368.7,3367.4,8.90895051]
[1768421183353,1.4656559,3369.3,3367.5,1.52030036]
[1768421183552,4.43535243,3369.7,3367.7,0.128]
[1768421183773,1.4676559,3369.7,3367.7,1.64525408]
[1768421183995,1.4676559,3369.7,3367.8,1.71415986]
[1768421184300,7.40292233,3369.7,3367.8,1.71415986]
[1768421184476,1.4656559,3369.6,3367.8,1.71415986]
[1768421184678,1.4656559,3369.5,3367.9,0.396]
[1768421185094,1.50275449,3369.4,3368.0,0.396]
[1768421185398,2.96797554,3369.3,3368.1,2.96903298]
[1768421185698,4.43357483,3369.4,3368.2,0.59381045]
[1768421186290,1.4656559,3369.3,3368.2,0.59381045]
[1768421186496,1.4656559,3369.1,3368.3,0.396]